[Event "*** Titled Tuesday Blitz"]
[Site "Chess.com"]
[Date "2020.05.05"]
[Round "9"]
[White "Rafael_Ventura"]
[Black "BasilSmash"]
[Result "0-1"]
[WhiteElo "2299"]
[BlackElo "2443"]
[TimeControl "180+1"]
[EndTime "11:49:04 PDT"]
[Termination "BasilSmash won by resignation"]

1. e4 {[%clk 0:03:00.9]} 1... c6 {[%clk 0:02:58.3]} 2. c4 {[%clk 0:03:00.8]}
2... d5 {[%clk 0:02:59.2]} 3. cxd5 {[%clk 0:03:01.7]} 3... cxd5 {[%clk
0:02:59.2]} 4. exd5 {[%clk 0:03:02.6]} 4... Nf6 {[%clk 0:02:59.5]} 5. Nc3 {[%clk
0:03:03.5]} 5... Nxd5 {[%clk 0:02:58.8]} 6. Nf3 {[%clk 0:03:03.7]} 6... Nc6
{[%clk 0:02:58.8]} 7. d4 {[%clk 0:03:03.5]} 7... g6 {[%clk 0:02:58.2]} 8. Qb3
{[%clk 0:02:58.6]} 8... e6 {[%clk 0:02:57.4]} 9. Bb5 {[%clk 0:02:45.2]} 9... Bg7
{[%clk 0:02:49.5]} 10. O-O {[%clk 0:02:42.8]} 10... O-O {[%clk 0:02:48.5]} 11.
Rd1 {[%clk 0:02:29.9]} 11... Na5 {[%clk 0:02:37.7]} 12. Qa3 {[%clk 0:02:26.7]}
12... a6 {[%clk 0:02:33.4]} 13. Bf1 {[%clk 0:02:25.1]} 13... Nc6 {[%clk
0:02:27.3]} 14. Ne4 {[%clk 0:02:15.5]} 14... Re8 {[%clk 0:02:11.2]} 15. Bg5
{[%clk 0:02:06.4]} 15... f6 {[%clk 0:02:10]} 16. Bh4 {[%clk 0:02:05.2]} 16... b6
{[%clk 0:02:01.9]} 17. Rac1 {[%clk 0:02:02.6]} 17... Bb7 {[%clk 0:02:00.9]} 18.
Nd6 {[%clk 0:01:48.6]} 18... Bf8 {[%clk 0:01:53.1]} 19. Nxb7 {[%clk 0:01:48.8]}
19... Qd7 {[%clk 0:01:33.4]} 20. Nc5 {[%clk 0:01:46.5]} 20... bxc5 {[%clk
0:01:26.7]} 21. dxc5 {[%clk 0:01:47.4]} 21... Qb7 {[%clk 0:01:09.5]} 22. b3
{[%clk 0:01:41]} 22... a5 {[%clk 0:01:02.1]} 23. Qa4 {[%clk 0:01:41.3]} 23...
Rec8 {[%clk 0:00:50.8]} 24. Bg3 {[%clk 0:01:41]} 24... Ncb4 {[%clk 0:00:48.8]}
25. Nd4 {[%clk 0:00:55.1]} 25... Kf7 {[%clk 0:00:43.4]} 26. Bb5 {[%clk
0:00:44.8]} 26... Rxc5 {[%clk 0:00:32]} 27. Rxc5 {[%clk 0:00:40.1]} 27... Bxc5
{[%clk 0:00:30.8]} 28. Bc4 {[%clk 0:00:39.2]} 28... Rd8 {[%clk 0:00:19.6]} 29.
a3 {[%clk 0:00:39.2]} 29... Na2 {[%clk 0:00:11.1]} 30. Qxa5 {[%clk 0:00:38.7]}
30... Bb6 {[%clk 0:00:09.4]} 31. Qb5 {[%clk 0:00:36.3]} 31... Nac3 {[%clk
0:00:08.9]} 32. Qa4 {[%clk 0:00:28.1]} 32... Nxa4 {[%clk 0:00:07.5]} 33. bxa4
{[%clk 0:00:28.1]} 33... Bxd4 {[%clk 0:00:06.2]} 34. Bb5 {[%clk 0:00:29]} 34...
Qb6 {[%clk 0:00:04]} 35. h3 {[%clk 0:00:28.5]} 35... Nc3 {[%clk 0:00:04.1]} 36.
Re1 {[%clk 0:00:24.2]} 36... Nxb5 {[%clk 0:00:03.6]} 37. axb5 {[%clk 0:00:25.1]}
37... e5 {[%clk 0:00:03.5]} 38. Rb1 {[%clk 0:00:24.1]} 38... Rc8 {[%clk
0:00:03.5]} 39. a4 {[%clk 0:00:21.4]} 39... Rc2 {[%clk 0:00:03.3]} 40. a5 {[%clk
0:00:20.2]} 40... Qxa5 {[%clk 0:00:03.5]} 41. b6 {[%clk 0:00:19.9]} 41... Bxb6
{[%clk 0:00:03.4]} 42. Rf1 {[%clk 0:00:19.4]} 42... Bd4 {[%clk 0:00:03.3]} 43.
Kh2 {[%clk 0:00:18.9]} 43... f5 {[%clk 0:00:03.6]} 44. Bh4 {[%clk 0:00:19.1]}
44... h6 {[%clk 0:00:03.6]} 45. f4 {[%clk 0:00:18.1]} 45... e4 {[%clk
0:00:03.6]} 46. Be1 {[%clk 0:00:17.7]} 46... Qa4 {[%clk 0:00:03.2]} 47. Bg3
{[%clk 0:00:15.2]} 47... Qa2 {[%clk 0:00:03.1]} 48. Rg1 {[%clk 0:00:15.4]} 48...
Bxg1+ {[%clk 0:00:02.5]} 49. Kxg1 {[%clk 0:00:15.6]} 49... Qb1+ {[%clk
0:00:03.3]} 50. Kh2 {[%clk 0:00:15.3]} 50... Qb2 {[%clk 0:00:04.2]} 51. Kg1
{[%clk 0:00:13.3]} 51... Qb3 {[%clk 0:00:04.9]} 52. Be1 {[%clk 0:00:12.5]} 52...
Qc4 {[%clk 0:00:05.7]} 53. Bf2 {[%clk 0:00:12.5]} 53... Qd3 {[%clk 0:00:06.6]}
0-1

[Event "*** Titled Tuesday Blitz"]
[Site "Chess.com"]
[Date "2020.05.05"]
[Round "9"]
[White "Ranindu2003"]
[Black "AlexZambrano"]
[Result "1/2-1/2"]
[WhiteElo "2467"]
[BlackElo "2290"]
[TimeControl "180+1"]
[EndTime "11:49:05 PDT"]
[Termination "Game drawn - timeout vs insufficient material"]

1. d4 {[%clk 0:03:00.9]} 1... Nf6 {[%clk 0:03:00.1]} 2. Bg5 {[%clk 0:03:00.7]}
2... d5 {[%clk 0:02:59.6]} 3. Nd2 {[%clk 0:02:59.4]} 3... g6 {[%clk 0:02:59.7]}
4. e3 {[%clk 0:02:54]} 4... Bg7 {[%clk 0:02:59.7]} 5. c3 {[%clk 0:02:54.1]} 5...
O-O {[%clk 0:02:59.9]} 6. Bxf6 {[%clk 0:02:52.8]} 6... Bxf6 {[%clk 0:02:59.4]}
7. f4 {[%clk 0:02:53.4]} 7... c5 {[%clk 0:02:58.7]} 8. Ngf3 {[%clk 0:02:53.6]}
8... cxd4 {[%clk 0:02:58.5]} 9. exd4 {[%clk 0:02:53.8]} 9... Qc7 {[%clk
0:02:56.7]} 10. g3 {[%clk 0:02:54.1]} 10... Nc6 {[%clk 0:02:55]} 11. Bg2 {[%clk
0:02:53.4]} 11... Bg4 {[%clk 0:02:51.6]} 12. O-O {[%clk 0:02:52.4]} 12... Rac8
{[%clk 0:02:50.3]} 13. h3 {[%clk 0:02:52.5]} 13... Bf5 {[%clk 0:02:49.5]} 14.
Qe2 {[%clk 0:02:49.2]} 14... Rfd8 {[%clk 0:02:42.1]} 15. g4 {[%clk 0:02:46]}
15... Be6 {[%clk 0:02:27.5]} 16. Ne5 {[%clk 0:02:44.4]} 16... Qd6 {[%clk
0:02:09.7]} 17. f5 {[%clk 0:02:36.7]} 17... gxf5 {[%clk 0:02:05.9]} 18. gxf5
{[%clk 0:02:37.6]} 18... Bd7 {[%clk 0:02:04.3]} 19. Ndf3 {[%clk 0:02:19.1]}
19... Bxf5 {[%clk 0:01:55.1]} 20. Nxf7 {[%clk 0:02:03.9]} 20... Kxf7 {[%clk
0:01:49.2]} 21. Ne5+ {[%clk 0:02:03.7]} 21... Nxe5 {[%clk 0:01:48.5]} 22. dxe5
{[%clk 0:01:55.5]} 22... Qxe5 {[%clk 0:01:38.1]} 23. Qh5+ {[%clk 0:01:51]} 23...
Kg7 {[%clk 0:01:16.5]} 24. Rxf5 {[%clk 0:01:46.6]} 24... Qe3+ {[%clk 0:01:15.3]}
25. Kh1 {[%clk 0:01:43.3]} 25... d4 {[%clk 0:01:08.1]} 26. Rf3 {[%clk
0:01:17.9]} 26... Qg5 {[%clk 0:00:57.3]} 27. Qxg5+ {[%clk 0:01:13.5]} 27... Bxg5
{[%clk 0:00:57.1]} 28. Rg3 {[%clk 0:01:10.9]} 28... Kh6 {[%clk 0:00:52.4]} 29.
cxd4 {[%clk 0:01:07.8]} 29... Rxd4 {[%clk 0:00:50.2]} 30. Re1 {[%clk 0:01:07.6]}
30... Rc2 {[%clk 0:00:37.2]} 31. Re6+ {[%clk 0:00:51.9]} 31... Bf6 {[%clk
0:00:36.8]} 32. Rb3 {[%clk 0:00:34.9]} 32... Rd1+ {[%clk 0:00:27.2]} 33. Kh2
{[%clk 0:00:34.4]} 33... Rdd2 {[%clk 0:00:27.2]} 34. Rg3 {[%clk 0:00:33.5]}
34... Rxb2 {[%clk 0:00:27.5]} 35. h4 {[%clk 0:00:33.7]} 35... Rxa2 {[%clk
0:00:23.8]} 36. Kh3 {[%clk 0:00:34.1]} 36... b6 {[%clk 0:00:21.4]} 37. Re4
{[%clk 0:00:32.4]} 37... a5 {[%clk 0:00:14.9]} 38. Re6 {[%clk 0:00:30]} 38... b5
{[%clk 0:00:14.2]} 39. Rb6 {[%clk 0:00:29.5]} 39... b4 {[%clk 0:00:14.1]} 40.
Rb5 {[%clk 0:00:29.5]} 40... Rdb2 {[%clk 0:00:05.8]} 41. Bf3 {[%clk 0:00:21.4]}
41... Rh2+ {[%clk 0:00:05]} 42. Kg4 {[%clk 0:00:22]} 42... a4 {[%clk 0:00:05.4]}
43. Rh5+ {[%clk 0:00:20.5]} 43... Kg7 {[%clk 0:00:05.2]} 44. Kf4+ {[%clk
0:00:21.1]} 44... Kh8 {[%clk 0:00:05.3]} 45. Be4 {[%clk 0:00:21.4]} 45... Raf2+
{[%clk 0:00:05.1]} 46. Rf3 {[%clk 0:00:21.7]} 46... Rxf3+ {[%clk 0:00:04.5]} 47.
Kxf3 {[%clk 0:00:22.6]} 47... b3 {[%clk 0:00:04.6]} 48. Rxh7+ {[%clk 0:00:22.5]}
48... Kg8 {[%clk 0:00:05.2]} 49. Rh5 {[%clk 0:00:22.9]} 49... a3 {[%clk
0:00:04.1]} 50. Rb5 {[%clk 0:00:23.4]} 50... b2 {[%clk 0:00:03.5]} 51. Kg4
{[%clk 0:00:19.4]} 51... Rxh4+ {[%clk 0:00:03.5]} 52. Kf5 {[%clk 0:00:19.5]}
52... Rxe4 {[%clk 0:00:03]} 53. Kxe4 {[%clk 0:00:20.4]} 53... a2 {[%clk
0:00:03.2]} 54. Kf5 {[%clk 0:00:20.7]} 54... b1=Q+ {[%clk 0:00:02.3]} 55. Rxb1
{[%clk 0:00:20.6]} 55... axb1=Q+ {[%clk 0:00:01.6]} 56. Ke6 {[%clk 0:00:21.5]}
1/2-1/2

[Event "*** Titled Tuesday Blitz"]
[Site "Chess.com"]
[Date "2020.05.05"]
[Round "9"]
[White "LPSupi"]
[Black "giantslayer83"]
[Result "0-1"]
[WhiteElo "2899"]
[BlackElo "2727"]
[TimeControl "180+1"]
[EndTime "11:49:07 PDT"]
[Termination "giantslayer83 won on time"]

1. d4 {[%clk 0:02:59.7]} 1... Nf6 {[%clk 0:02:57.3]} 2. c4 {[%clk 0:02:59.2]}
2... e6 {[%clk 0:02:57.3]} 3. Nf3 {[%clk 0:02:58.5]} 3... d5 {[%clk 0:02:56.6]}
4. Nc3 {[%clk 0:02:56.1]} 4... Bb4 {[%clk 0:02:54.1]} 5. e3 {[%clk 0:02:54.5]}
5... O-O {[%clk 0:02:53.1]} 6. Be2 {[%clk 0:02:54.7]} 6... b6 {[%clk 0:02:52.2]}
7. cxd5 {[%clk 0:02:50.1]} 7... exd5 {[%clk 0:02:51.9]} 8. O-O {[%clk
0:02:50.8]} 8... Bb7 {[%clk 0:02:51.8]} 9. Bd2 {[%clk 0:02:49.7]} 9... a6 {[%clk
0:02:51.8]} 10. Rc1 {[%clk 0:02:48.7]} 10... Bd6 {[%clk 0:02:51.7]} 11. Ne5
{[%clk 0:02:46.4]} 11... c5 {[%clk 0:02:51.6]} 12. Be1 {[%clk 0:02:33.9]} 12...
Nc6 {[%clk 0:02:48.5]} 13. Ng4 {[%clk 0:02:11.6]} 13... Nxg4 {[%clk 0:02:32.3]}
14. Bxg4 {[%clk 0:02:08.4]} 14... cxd4 {[%clk 0:02:14.8]} 15. exd4 {[%clk
0:02:07.5]} 15... Ne7 {[%clk 0:01:41.6]} 16. Bd2 {[%clk 0:02:03.8]} 16... b5
{[%clk 0:01:40.7]} 17. Re1 {[%clk 0:01:59.2]} 17... Ng6 {[%clk 0:01:35.8]} 18.
g3 {[%clk 0:01:57.1]} 18... Qf6 {[%clk 0:01:34.4]} 19. Be3 {[%clk 0:01:55]}
19... Rad8 {[%clk 0:01:30.6]} 20. Bh3 {[%clk 0:01:38.9]} 20... Ne7 {[%clk
0:01:24.5]} 21. Qh5 {[%clk 0:01:33.4]} 21... Qg6 {[%clk 0:01:19.6]} 22. Qf3
{[%clk 0:01:19.1]} 22... Rfe8 {[%clk 0:01:03.5]} 23. Kg2 {[%clk 0:01:09.4]}
23... h6 {[%clk 0:00:57.1]} 24. Bf4 {[%clk 0:01:08.1]} 24... Qf6 {[%clk
0:00:30]} 25. Bxd6 {[%clk 0:01:04.5]} 25... Qxd6 {[%clk 0:00:28.8]} 26. Re3
{[%clk 0:00:59]} 26... Nc6 {[%clk 0:00:28.5]} 27. Rce1 {[%clk 0:00:55.6]} 27...
Rxe3 {[%clk 0:00:28]} 28. Qxe3 {[%clk 0:00:55.8]} 28... Qf6 {[%clk 0:00:27]} 29.
Rd1 {[%clk 0:00:53.2]} 29... Kf8 {[%clk 0:00:27]} 30. Bg4 {[%clk 0:00:51.5]}
30... Ne7 {[%clk 0:00:21.9]} 31. Qd2 {[%clk 0:00:48]} 31... Nf5 {[%clk
0:00:21.5]} 32. Bxf5 {[%clk 0:00:36.9]} 32... Qxf5 {[%clk 0:00:22.4]} 33. Re1
{[%clk 0:00:37.5]} 33... Bc8 {[%clk 0:00:22.1]} 34. f3 {[%clk 0:00:36.3]} 34...
Qh3+ {[%clk 0:00:21.7]} 35. Kg1 {[%clk 0:00:36.4]} 35... Be6 {[%clk 0:00:21.2]}
36. Qf4 {[%clk 0:00:34.7]} 36... Kg8 {[%clk 0:00:20.6]} 37. Nd1 {[%clk
0:00:33.8]} 37... Rc8 {[%clk 0:00:20.1]} 38. Ne3 {[%clk 0:00:33.9]} 38... b4
{[%clk 0:00:19.7]} 39. Qd6 {[%clk 0:00:30.8]} 39... a5 {[%clk 0:00:19.4]} 40.
Qb6 {[%clk 0:00:29]} 40... h5 {[%clk 0:00:19.9]} 41. Qd6 {[%clk 0:00:23.6]}
41... h4 {[%clk 0:00:20.1]} 42. Qf4 {[%clk 0:00:22]} 42... a4 {[%clk 0:00:20.3]}
43. Qxh4 {[%clk 0:00:18.2]} 43... Qxh4 {[%clk 0:00:20.5]} 44. gxh4 {[%clk
0:00:19.1]} 44... a3 {[%clk 0:00:19.6]} 45. bxa3 {[%clk 0:00:18.9]} 45... bxa3
{[%clk 0:00:20.5]} 46. Rd1 {[%clk 0:00:16.6]} 46... Rc3 {[%clk 0:00:20.5]} 47.
Kf2 {[%clk 0:00:16.5]} 47... Kh7 {[%clk 0:00:21]} 48. Rd2 {[%clk 0:00:16.6]}
48... Kh6 {[%clk 0:00:21.2]} 49. Rc2 {[%clk 0:00:15.2]} 49... Rd3 {[%clk
0:00:20.9]} 50. Rc7 {[%clk 0:00:05.3]} 50... Rxd4 {[%clk 0:00:20.5]} 51. Ra7
{[%clk 0:00:05.9]} 51... Rd2+ {[%clk 0:00:20.7]} 52. Kg3 {[%clk 0:00:06.4]}
52... Rxa2 {[%clk 0:00:21.6]} 53. Ra8 {[%clk 0:00:06.9]} 53... Kg6 {[%clk
0:00:21.3]} 54. h5+ {[%clk 0:00:05.1]} 54... Kxh5 {[%clk 0:00:21.2]} 55. Ng2
{[%clk 0:00:05.9]} 55... g5 {[%clk 0:00:20.1]} 56. h4 {[%clk 0:00:05.3]} 56...
gxh4+ {[%clk 0:00:20.2]} 57. Nxh4 {[%clk 0:00:06.1]} 57... Kg5 {[%clk
0:00:20.6]} 58. Ng2 {[%clk 0:00:04]} 58... Kf6 {[%clk 0:00:20.5]} 59. Nf4 {[%clk
0:00:03.1]} 59... Ra1 {[%clk 0:00:20.5]} 60. Nd3 {[%clk 0:00:02.7]} 60... a2
{[%clk 0:00:19.6]} 61. Kg2 {[%clk 0:00:01.4]} 61... d4 {[%clk 0:00:19.9]} 62.
Nc5 {[%clk 0:00:01.6]} 62... Bd5 {[%clk 0:00:18.3]} 0-1

[Event "*** Titled Tuesday Blitz"]
[Site "Chess.com"]
[Date "2020.05.05"]
[Round "9"]
[White "Corpescador"]
[Black "HanSchut"]
[Result "1-0"]
[WhiteElo "2379"]
[BlackElo "2221"]
[TimeControl "180+1"]
[EndTime "11:49:08 PDT"]
[Termination "Corpescador won by resignation"]

1. e4 {[%clk 0:02:56.8]} 1... c5 {[%clk 0:02:59.8]} 2. Nf3 {[%clk 0:02:56.6]}
2... d6 {[%clk 0:03:00.2]} 3. d4 {[%clk 0:02:56.5]} 3... cxd4 {[%clk 0:03:01.1]}
4. Nxd4 {[%clk 0:02:57]} 4... Nf6 {[%clk 0:03:01.8]} 5. Nc3 {[%clk 0:02:57.3]}
5... a6 {[%clk 0:03:02.3]} 6. Be3 {[%clk 0:02:56.8]} 6... e5 {[%clk 0:03:02.5]}
7. Nb3 {[%clk 0:02:56.9]} 7... Be6 {[%clk 0:03:02.5]} 8. f3 {[%clk 0:02:57.3]}
8... Be7 {[%clk 0:03:03]} 9. Qd2 {[%clk 0:02:57.3]} 9... O-O {[%clk 0:03:03.2]}
10. O-O-O {[%clk 0:02:57.5]} 10... Nbd7 {[%clk 0:03:03.8]} 11. Kb1 {[%clk
0:02:57.7]} 11... b5 {[%clk 0:03:04]} 12. g4 {[%clk 0:02:58.1]} 12... b4 {[%clk
0:03:03.9]} 13. Ne2 {[%clk 0:02:57.7]} 13... a5 {[%clk 0:03:01.9]} 14. g5 {[%clk
0:02:58]} 14... Ne8 {[%clk 0:02:57.1]} 15. f4 {[%clk 0:02:56.4]} 15... Bxb3
{[%clk 0:02:51.2]} 16. cxb3 {[%clk 0:02:47.9]} 16... a4 {[%clk 0:02:52.1]} 17.
bxa4 {[%clk 0:02:33.7]} 17... Rxa4 {[%clk 0:02:53]} 18. Nc1 {[%clk 0:01:51.9]}
18... Qa8 {[%clk 0:02:38.2]} 19. Qd5 {[%clk 0:01:48.5]} 19... exf4 {[%clk
0:02:25.9]} 20. Bxf4 {[%clk 0:01:39.4]} 20... Ne5 {[%clk 0:02:25.4]} 21. Bb5
{[%clk 0:01:31.3]} 21... Nc7 {[%clk 0:01:52.8]} 22. Qxa8 {[%clk 0:01:31.2]}
22... Raxa8 {[%clk 0:01:51.5]} 23. Be2 {[%clk 0:01:28.4]} 23... Ne6 {[%clk
0:01:44.2]} 24. Bxe5 {[%clk 0:01:15.7]} 24... dxe5 {[%clk 0:01:45.1]} 25. h4
{[%clk 0:01:15.8]} 25... Nd4 {[%clk 0:01:35.7]} 26. Bc4 {[%clk 0:01:12.1]} 26...
Rac8 {[%clk 0:01:29.1]} 27. Bd5 {[%clk 0:01:08.7]} 27... g6 {[%clk 0:01:15.1]}
28. Nd3 {[%clk 0:01:05.9]} 28... Bd6 {[%clk 0:01:09.5]} 29. Rhf1 {[%clk
0:01:02.5]} 29... Kg7 {[%clk 0:01:08.5]} 30. Rf6 {[%clk 0:00:59.2]} 30... Be7
{[%clk 0:01:05.1]} 31. Nxe5 {[%clk 0:00:51.6]} 31... Ne6 {[%clk 0:00:23.5]} 32.
Bxe6 {[%clk 0:00:38.2]} 32... fxe6 {[%clk 0:00:24]} 33. Rxe6 {[%clk 0:00:35.7]}
33... Bc5 {[%clk 0:00:11.1]} 34. Nd3 {[%clk 0:00:26.3]} 34... Rf7 {[%clk
0:00:09.6]} 35. Rc1 {[%clk 0:00:21.4]} 35... Rfc7 {[%clk 0:00:07.3]} 36. Nxc5
{[%clk 0:00:20.6]} 36... Rxc5 {[%clk 0:00:07.7]} 37. Rxc5 {[%clk 0:00:21.1]}
37... Rxc5 {[%clk 0:00:08.6]} 38. b3 {[%clk 0:00:20.7]} 38... Rc3 {[%clk
0:00:06.2]} 39. Rb6 {[%clk 0:00:20.3]} 39... Rh3 {[%clk 0:00:06.8]} 40. Rxb4
{[%clk 0:00:19.8]} 40... Rxh4 {[%clk 0:00:07.4]} 41. a4 {[%clk 0:00:20.2]} 41...
Rg4 {[%clk 0:00:07.3]} 42. Rb5 {[%clk 0:00:19.4]} 42... Rxe4 {[%clk 0:00:07.4]}
43. a5 {[%clk 0:00:19.1]} 43... h5 {[%clk 0:00:07.8]} 44. gxh6+ {[%clk
0:00:18.2]} 44... Kxh6 {[%clk 0:00:07.8]} 45. a6 {[%clk 0:00:18.3]} 45... Re7
{[%clk 0:00:07.1]} 46. Rb7 {[%clk 0:00:16.8]} 46... Re5 {[%clk 0:00:07.3]} 47.
a7 {[%clk 0:00:15.5]} 47... Ra5 {[%clk 0:00:07.4]} 48. b4 {[%clk 0:00:15.8]}
48... Ra4 {[%clk 0:00:06]} 49. Kb2 {[%clk 0:00:15.9]} 49... g5 {[%clk
0:00:05.4]} 50. Kb3 {[%clk 0:00:16]} 50... Ra1 {[%clk 0:00:05.7]} 51. b5 {[%clk
0:00:15.3]} 51... g4 {[%clk 0:00:06.3]} 52. Rb6+ {[%clk 0:00:15.6]} 52... Kh5
{[%clk 0:00:06.3]} 53. Ra6 {[%clk 0:00:16.5]} 53... Rc1 {[%clk 0:00:05.9]} 54.
a8=Q {[%clk 0:00:16]} 54... Rb1+ {[%clk 0:00:06.1]} 55. Kc2 {[%clk 0:00:15.8]}
55... Rf1 {[%clk 0:00:06.6]} 56. Qh8+ {[%clk 0:00:15.1]} 56... Kg5 {[%clk
0:00:06.4]} 57. Qg7+ {[%clk 0:00:13.9]} 57... Kh4 {[%clk 0:00:06.8]} 58. Qh6+
{[%clk 0:00:12.9]} 58... Kg3 {[%clk 0:00:07.4]} 59. Qe3+ {[%clk 0:00:12.9]}
59... Rf3 {[%clk 0:00:07.9]} 60. Qe5+ {[%clk 0:00:12.9]} 60... Kg2 {[%clk
0:00:07.9]} 61. Rh6 {[%clk 0:00:12.1]} 61... g3 {[%clk 0:00:06.7]} 62. b6 {[%clk
0:00:10.8]} 62... Rf2+ {[%clk 0:00:06.7]} 63. Kd3 {[%clk 0:00:11.1]} 63... Rf3+
{[%clk 0:00:06.7]} 64. Ke4 {[%clk 0:00:10.6]} 64... Rf1 {[%clk 0:00:07.2]} 65.
Qf5 {[%clk 0:00:10.2]} 65... Rxf5 {[%clk 0:00:04.6]} 66. Kxf5 {[%clk 0:00:10.4]}
66... Kf2 {[%clk 0:00:05.5]} 67. Rg6 {[%clk 0:00:10.6]} 67... g2 {[%clk
0:00:06]} 68. Rxg2+ {[%clk 0:00:10.7]} 1-0

[Event "*** Titled Tuesday Blitz"]
[Site "Chess.com"]
[Date "2020.05.05"]
[Round "9"]
[White "Olga_Zhuravleva"]
[Black "Nikithebest"]
[Result "0-1"]
[WhiteElo "2263"]
[BlackElo "2428"]
[TimeControl "180+1"]
[EndTime "11:49:09 PDT"]
[Termination "Nikithebest won on time"]

1. e4 {[%clk 0:02:59.6]} 1... c5 {[%clk 0:02:59.5]} 2. Nf3 {[%clk 0:02:58]} 2...
d6 {[%clk 0:03:00.3]} 3. d4 {[%clk 0:02:56.8]} 3... cxd4 {[%clk 0:03:01]} 4.
Nxd4 {[%clk 0:02:57.7]} 4... Nf6 {[%clk 0:03:00.7]} 5. Nc3 {[%clk 0:02:57.8]}
5... g6 {[%clk 0:03:01.6]} 6. Be2 {[%clk 0:02:57.6]} 6... Bg7 {[%clk 0:02:57.9]}
7. O-O {[%clk 0:02:58]} 7... O-O {[%clk 0:02:58.1]} 8. Re1 {[%clk 0:02:56.6]}
8... Nc6 {[%clk 0:02:57]} 9. Nb3 {[%clk 0:02:56.7]} 9... Be6 {[%clk 0:02:52.8]}
10. Bf1 {[%clk 0:02:54.5]} 10... d5 {[%clk 0:02:43.6]} 11. exd5 {[%clk
0:02:52.7]} 11... Nxd5 {[%clk 0:02:43.5]} 12. Nxd5 {[%clk 0:02:49.1]} 12... Qxd5
{[%clk 0:02:34.8]} 13. Qxd5 {[%clk 0:02:47.3]} 13... Bxd5 {[%clk 0:02:35.7]} 14.
c3 {[%clk 0:02:48]} 14... a5 {[%clk 0:02:31.6]} 15. Nc5 {[%clk 0:02:42.2]} 15...
b6 {[%clk 0:02:24.8]} 16. Nd7 {[%clk 0:02:41.5]} 16... a4 {[%clk 0:02:15.7]} 17.
Nxf8 {[%clk 0:02:10.7]} 17... Kxf8 {[%clk 0:02:16.6]} 18. a3 {[%clk 0:02:04.2]}
18... Na5 {[%clk 0:02:14.2]} 19. Be3 {[%clk 0:02:01.4]} 19... Rb8 {[%clk
0:02:05.2]} 20. Rad1 {[%clk 0:01:58]} 20... e6 {[%clk 0:02:05.7]} 21. Bb5 {[%clk
0:01:54.8]} 21... Bb3 {[%clk 0:02:05.9]} 22. Rd7 {[%clk 0:01:51.2]} 22... Nc4
{[%clk 0:01:52.4]} 23. Bc1 {[%clk 0:01:26.8]} 23... Bf6 {[%clk 0:01:13.3]} 24.
h3 {[%clk 0:01:26]} 24... h5 {[%clk 0:01:13.3]} 25. Re4 {[%clk 0:01:04.4]} 25...
Ne5 {[%clk 0:01:13.3]} 26. Bh6+ {[%clk 0:00:51.8]} 26... Kg8 {[%clk 0:01:11.5]}
27. Ra7 {[%clk 0:00:33.8]} 27... Bd5 {[%clk 0:01:06.2]} 28. Re1 {[%clk
0:00:30.9]} 28... g5 {[%clk 0:00:58.7]} 29. Bxg5 {[%clk 0:00:24.6]} 29... Bxg5
{[%clk 0:00:55.9]} 30. Rxe5 {[%clk 0:00:23.3]} 30... Bc1 {[%clk 0:00:56.8]} 31.
Re2 {[%clk 0:00:20.5]} 31... Rd8 {[%clk 0:00:53.5]} 32. Bxa4 {[%clk 0:00:20.3]}
32... Bc4 {[%clk 0:00:53.6]} 33. Re1 {[%clk 0:00:19.3]} 33... Bxb2 {[%clk
0:00:53.9]} 34. Bc2 {[%clk 0:00:18.6]} 34... Bxc3 {[%clk 0:00:53.2]} 35. Rb1
{[%clk 0:00:19.3]} 35... b5 {[%clk 0:00:52.3]} 36. Be4 {[%clk 0:00:18.6]} 36...
Rd2 {[%clk 0:00:49.1]} 37. Bf3 {[%clk 0:00:18.6]} 37... Bd4 {[%clk 0:00:48.2]}
38. Ra8+ {[%clk 0:00:18.8]} 38... Kg7 {[%clk 0:00:48.4]} 39. Bxh5 {[%clk
0:00:18.5]} 39... Rxf2 {[%clk 0:00:46.9]} 40. Kh1 {[%clk 0:00:19]} 40... Bd5
{[%clk 0:00:46.1]} 41. Rb8 {[%clk 0:00:14.8]} 41... Bxg2+ {[%clk 0:00:44.6]} 42.
Kh2 {[%clk 0:00:13.3]} 42... Be4+ {[%clk 0:00:44.5]} 43. Kg3 {[%clk 0:00:13.8]}
43... Bxb1 {[%clk 0:00:44.5]} 44. Rxb5 {[%clk 0:00:12.3]} 44... Ra2 {[%clk
0:00:41.8]} 45. Rxb1 {[%clk 0:00:09.2]} 45... Rxa3+ {[%clk 0:00:42.5]} 46. Kg2
{[%clk 0:00:09.2]} 46... Ra5 {[%clk 0:00:42.5]} 47. Bf3 {[%clk 0:00:08.8]} 47...
Ra6 {[%clk 0:00:42.3]} 48. Kg3 {[%clk 0:00:08.8]} 48... f5 {[%clk 0:00:42.7]}
49. Rb7+ {[%clk 0:00:09]} 49... Kf6 {[%clk 0:00:43.3]} 50. Kf4 {[%clk
0:00:09.2]} 50... e5+ {[%clk 0:00:43.7]} 51. Kg3 {[%clk 0:00:09.4]} 51... e4
{[%clk 0:00:44.4]} 52. Be2 {[%clk 0:00:08.7]} 52... Ra3+ {[%clk 0:00:44.2]} 53.
Kg2 {[%clk 0:00:08.9]} 53... Ke5 {[%clk 0:00:43.8]} 54. Rb5+ {[%clk 0:00:08.4]}
54... Kf4 {[%clk 0:00:44.5]} 55. h4 {[%clk 0:00:06.6]} 55... Ra2 {[%clk
0:00:44.5]} 56. Kf1 {[%clk 0:00:06.5]} 56... Ke3 {[%clk 0:00:44.5]} 57. Bc4
{[%clk 0:00:05.4]} 57... Ra1+ {[%clk 0:00:41.8]} 58. Kg2 {[%clk 0:00:05.4]}
58... f4 {[%clk 0:00:42.3]} 59. Rb3+ {[%clk 0:00:05]} 59... Kd2 {[%clk
0:00:39.3]} 60. Bd5 {[%clk 0:00:05.3]} 60... f3+ {[%clk 0:00:39.4]} 61. Kg3
{[%clk 0:00:05.5]} 61... f2 {[%clk 0:00:39.6]} 62. Bc4 {[%clk 0:00:05.4]} 62...
e3 {[%clk 0:00:38.5]} 63. Kf3 {[%clk 0:00:04.2]} 63... Bc3 {[%clk 0:00:32.9]}
0-1